[Event "Late-Titled-Tuesday-Blitz-September-05-2023"]
[Site "Chess.com"]
[Date "2023.09.05"]
[Round "11"]
[White "maurovargas01"]
[Black "boguszp"]
[Result "0-1"]
[WhiteElo "1868"]
[BlackElo "2078"]
[TimeControl "180+1"]
[EndTime "16:05:51 PDT"]
[Termination "boguszp won on time"]

1. e4 {[%clk 0:03:00]} 1... e6 {[%clk 0:02:58.7]} 2. f4 {[%clk 0:02:59.7]} 2...
d5 {[%clk 0:02:59]} 3. e5 {[%clk 0:03:00]} 3... c5 {[%clk 0:02:59.3]} 4. Nf3
{[%clk 0:03:00.9]} 4... Nc6 {[%clk 0:02:58]} 5. Bb5 {[%clk 0:03:01.3]} 5... Bd7
{[%clk 0:02:56.4]} 6. Bxc6 {[%clk 0:03:02.2]} 6... Bxc6 {[%clk 0:02:54.9]} 7.
O-O {[%clk 0:03:03.1]} 7... Nh6 {[%clk 0:02:52.1]} 8. d3 {[%clk 0:03:03]} 8...
Nf5 {[%clk 0:02:52.3]} 9. Qe1 {[%clk 0:03:03.1]} 9... h5 {[%clk 0:02:51]} 10. c3
{[%clk 0:03:03.3]} 10... d4 {[%clk 0:02:47.2]} 11. c4 {[%clk 0:03:00.1]} 11...
Be7 {[%clk 0:02:44]} 12. Nbd2 {[%clk 0:02:33.9]} 12... g6 {[%clk 0:02:39.6]} 13.
Ne4 {[%clk 0:02:26]} 13... Qd7 {[%clk 0:02:31.8]} 14. Bd2 {[%clk 0:02:25.1]}
14... h4 {[%clk 0:02:11]} 15. h3 {[%clk 0:02:21.5]} 15... Bxe4 {[%clk
0:02:03.1]} 16. Qxe4 {[%clk 0:02:20.4]} 16... Ng3 {[%clk 0:01:58.5]} 17. Qe1
{[%clk 0:02:18]} 17... Nxf1 {[%clk 0:01:57.8]} 18. Qxf1 {[%clk 0:02:16.9]} 18...
Qc6 {[%clk 0:01:45.9]} 19. Be1 {[%clk 0:02:12.8]} 19... O-O-O {[%clk 0:01:41.6]}
20. Nd2 {[%clk 0:02:12.1]} 20... g5 {[%clk 0:01:34.2]} 21. Ne4 {[%clk
0:01:58.5]} 21... Rhg8 {[%clk 0:01:24.5]} 22. Bd2 {[%clk 0:01:51.5]} 22... gxf4
{[%clk 0:01:21.4]} 23. Bxf4 {[%clk 0:01:48.1]} 23... Rg7 {[%clk 0:01:19.7]} 24.
Re1 {[%clk 0:01:38.7]} 24... Rdg8 {[%clk 0:01:18.1]} 25. Re2 {[%clk 0:01:38.1]}
25... f5 {[%clk 0:01:07.9]} 26. exf6 {[%clk 0:01:36.3]} 26... Bxf6 {[%clk
0:01:07.1]} 27. Nxf6 {[%clk 0:01:31.4]} 27... Rf8 {[%clk 0:00:58.8]} 28. Ne4
{[%clk 0:01:16]} 28... Rgf7 {[%clk 0:00:54]} 29. Rf2 {[%clk 0:01:15.2]} 29... e5
{[%clk 0:00:49.9]} 30. Be3 {[%clk 0:01:04.7]} 30... Rxf2 {[%clk 0:00:47.2]} 31.
Bxf2 {[%clk 0:01:04.4]} 31... b6 {[%clk 0:00:43.3]} 32. Qe2 {[%clk 0:01:02.4]}
32... Qh6 {[%clk 0:00:37.2]} 33. Qg4+ {[%clk 0:00:59.2]} 33... Kc7 {[%clk
0:00:35.6]} 34. Bxh4 {[%clk 0:00:53.4]} 34... Rf4 {[%clk 0:00:33.1]} 35. Bg5
{[%clk 0:00:22]} 35... Rxg4 {[%clk 0:00:25.2]} 36. Bxh6 {[%clk 0:00:21.6]} 36...
Rg6 {[%clk 0:00:25]} 37. Bd2 {[%clk 0:00:18.8]} 37... a6 {[%clk 0:00:22.8]} 38.
g4 {[%clk 0:00:18.8]} 38... Kc6 {[%clk 0:00:21.6]} 39. Kg2 {[%clk 0:00:19.1]}
39... b5 {[%clk 0:00:19.4]} 40. Kg3 {[%clk 0:00:16.2]} 40... bxc4 {[%clk
0:00:18.7]} 41. dxc4 {[%clk 0:00:14.7]} 41... Rg7 {[%clk 0:00:17.1]} 42. b3
{[%clk 0:00:11.2]} 42... a5 {[%clk 0:00:15.3]} 43. h4 {[%clk 0:00:10.4]} 43...
a4 {[%clk 0:00:15]} 44. g5 {[%clk 0:00:08.8]} 44... axb3 {[%clk 0:00:12.9]} 45.
Kg4 {[%clk 0:00:09.5]} 45... bxa2 {[%clk 0:00:11.1]} 46. Nf6 {[%clk 0:00:05.4]}
46... a1=Q {[%clk 0:00:09.5]} 47. h5 {[%clk 0:00:04.7]} 47... Qd1+ {[%clk
0:00:08.6]} 48. Kf5 {[%clk 0:00:01.9]} 48... Qxd2 {[%clk 0:00:09.1]} 0-1

[Event "Late-Titled-Tuesday-Blitz-September-05-2023"]
[Site "Chess.com"]
[Date "2023.09.05"]
[Round "11"]
[White "MajorCoast"]
[Black "Colombiano07"]
[Result "0-1"]
[WhiteElo "2297"]
[BlackElo "2421"]
[TimeControl "180+1"]
[EndTime "16:05:55 PDT"]
[Termination "Colombiano07 won on time"]

1. d4 {[%clk 0:03:00.9]} 1... d5 {[%clk 0:02:57.1]} 2. Nf3 {[%clk 0:03:01.4]}
2... Nf6 {[%clk 0:02:55.7]} 3. c3 {[%clk 0:03:01.7]} 3... Bf5 {[%clk 0:02:55.3]}
4. c4 {[%clk 0:03:00.8]} 4... c6 {[%clk 0:02:54.6]} 5. Nc3 {[%clk 0:02:58.9]}
5... e6 {[%clk 0:02:54.6]} 6. Qb3 {[%clk 0:02:59]} 6... Qb6 {[%clk 0:02:54.4]}
7. c5 {[%clk 0:02:59]} 7... Qc7 {[%clk 0:02:51.6]} 8. Bf4 {[%clk 0:02:58.8]}
8... Qc8 {[%clk 0:02:51.3]} 9. e3 {[%clk 0:02:59.3]} 9... Nbd7 {[%clk
0:02:51.5]} 10. h3 {[%clk 0:02:57.7]} 10... h6 {[%clk 0:02:51.5]} 11. Be2 {[%clk
0:02:54.5]} 11... b6 {[%clk 0:02:51.8]} 12. cxb6 {[%clk 0:02:51.3]} 12... axb6
{[%clk 0:02:52.7]} 13. Rc1 {[%clk 0:02:50.6]} 13... Qb7 {[%clk 0:02:49.4]} 14.
O-O {[%clk 0:02:44]} 14... Be7 {[%clk 0:02:49.4]} 15. Ne5 {[%clk 0:02:41.2]}
15... Nxe5 {[%clk 0:02:46.2]} 16. Bxe5 {[%clk 0:02:34.7]} 16... O-O {[%clk
0:02:45.4]} 17. Na4 {[%clk 0:02:31.9]} 17... Nd7 {[%clk 0:02:41.7]} 18. Bg3
{[%clk 0:02:27.1]} 18... b5 {[%clk 0:02:40.6]} 19. Nc5 {[%clk 0:02:23.8]} 19...
Nxc5 {[%clk 0:02:41.1]} 20. dxc5 {[%clk 0:02:23.9]} 20... Bf6 {[%clk 0:02:41.2]}
21. a3 {[%clk 0:02:15.4]} 21... Qa6 {[%clk 0:02:40.3]} 22. Bd3 {[%clk
0:02:04.2]} 22... Qa4 {[%clk 0:02:22.7]} 23. Qxa4 {[%clk 0:01:50.2]} 23... Rxa4
{[%clk 0:02:23.6]} 24. Bxf5 {[%clk 0:01:39.6]} 24... exf5 {[%clk 0:02:24.5]} 25.
Rc2 {[%clk 0:01:39.7]} 25... b4 {[%clk 0:02:22.8]} 26. axb4 {[%clk 0:00:51.5]}
26... Rxb4 {[%clk 0:02:23.7]} 27. Ra1 {[%clk 0:00:51.4]} 27... Rxb2 {[%clk
0:02:16.1]} 28. Rxb2 {[%clk 0:00:50.2]} 28... Bxb2 {[%clk 0:02:17]} 29. Ra6
{[%clk 0:00:48.7]} 29... Rc8 {[%clk 0:02:17.5]} 30. Kf1 {[%clk 0:00:41.5]} 30...
f6 {[%clk 0:02:10.3]} 31. Ke2 {[%clk 0:00:39.7]} 31... Be5 {[%clk 0:02:10.8]}
32. f4 {[%clk 0:00:22.8]} 32... Bb2 {[%clk 0:02:08.7]} 33. Be1 {[%clk
0:00:20.5]} 33... d4 {[%clk 0:02:07.2]} 34. exd4 {[%clk 0:00:18.2]} 34... Bxd4
{[%clk 0:02:08.1]} 35. Bf2 {[%clk 0:00:16.2]} 35... Re8+ {[%clk 0:01:56.8]} 36.
Kf3 {[%clk 0:00:15.2]} 36... Bxf2 {[%clk 0:01:48.4]} 37. Kxf2 {[%clk 0:00:16.1]}
37... Re4 {[%clk 0:01:48.6]} 38. Rxc6 {[%clk 0:00:14.9]} 38... Rxf4+ {[%clk
0:01:48.8]} 39. Kg3 {[%clk 0:00:14.3]} 39... Rc4 {[%clk 0:01:49.7]} 40. Rc8+
{[%clk 0:00:10.4]} 40... Kh7 {[%clk 0:01:50]} 41. c6 {[%clk 0:00:10.4]} 41... h5
{[%clk 0:01:50.5]} 42. Kf3 {[%clk 0:00:10.5]} 42... h4 {[%clk 0:01:50.6]} 43. c7
{[%clk 0:00:09.2]} 43... Kg6 {[%clk 0:01:50]} 44. Ke3 {[%clk 0:00:08.9]} 44...
Kf7 {[%clk 0:01:44.7]} 45. Rh8 {[%clk 0:00:07.6]} 45... Rc3+ {[%clk 0:01:42.4]}
46. Kf2 {[%clk 0:00:05.6]} 46... Rxc7 {[%clk 0:01:43.3]} 47. Rxh4 {[%clk
0:00:05]} 47... Kg6 {[%clk 0:01:43.1]} 48. Rf4 {[%clk 0:00:05.1]} 48... Kg5
{[%clk 0:01:43.3]} 49. Rf3 {[%clk 0:00:05.5]} 49... Rc2+ {[%clk 0:01:42.7]} 50.
Kg3 {[%clk 0:00:05.3]} 50... g6 {[%clk 0:01:41.7]} 51. h4+ {[%clk 0:00:05.6]}
51... Kh5 {[%clk 0:01:41.9]} 52. Kh3 {[%clk 0:00:06]} 52... Rc4 {[%clk
0:01:40.8]} 53. g3 {[%clk 0:00:05.2]} 53... Rd4 {[%clk 0:01:36.8]} 54. Rb3
{[%clk 0:00:05.6]} 54... Rd1 {[%clk 0:01:31.3]} 55. Ra3 {[%clk 0:00:06]} 55...
Rh1+ {[%clk 0:01:31.1]} 56. Kg2 {[%clk 0:00:06.4]} 56... Rb1 {[%clk 0:01:32]}
57. Rc3 {[%clk 0:00:06.3]} 57... Rb4 {[%clk 0:01:30.5]} 58. Kh3 {[%clk
0:00:06.6]} 58... Rb1 {[%clk 0:01:30.2]} 59. Rd3 {[%clk 0:00:06.6]} 59... Rh1+
{[%clk 0:01:30]} 60. Kg2 {[%clk 0:00:07]} 60... Re1 {[%clk 0:01:30.9]} 61. Kh3
{[%clk 0:00:06.9]} 61... Rg1 {[%clk 0:01:24.9]} 62. Rd8 {[%clk 0:00:06.9]} 62...
Kh6 {[%clk 0:01:24.3]} 63. Rh8+ {[%clk 0:00:06.2]} 63... Kg7 {[%clk 0:01:24.7]}
64. Ra8 {[%clk 0:00:07.1]} 64... Re1 {[%clk 0:01:23.4]} 65. Ra7+ {[%clk
0:00:07.3]} 65... Kf8 {[%clk 0:01:23.9]} 66. Ra8+ {[%clk 0:00:07.6]} 66... Kf7
{[%clk 0:01:24.5]} 67. Ra7+ {[%clk 0:00:08]} 67... Re7 {[%clk 0:01:25]} 68. Ra6
{[%clk 0:00:07.5]} 68... Kg7 {[%clk 0:01:24.2]} 69. Kg2 {[%clk 0:00:07.4]} 69...
Rf7 {[%clk 0:01:23.6]} 70. Kh3 {[%clk 0:00:07.8]} 70... Kh6 {[%clk 0:01:21.8]}
71. Kg2 {[%clk 0:00:08]} 71... Kh5 {[%clk 0:01:22.3]} 72. Kf3 {[%clk 0:00:08.3]}
72... g5 {[%clk 0:01:21.5]} 73. hxg5 {[%clk 0:00:07]} 73... fxg5 {[%clk
0:01:22.4]} 74. Ra2 {[%clk 0:00:06]} 74... Rb7 {[%clk 0:01:20.4]} 75. Rh2+
{[%clk 0:00:05.8]} 75... Kg6 {[%clk 0:01:20.5]} 76. Rc2 {[%clk 0:00:06.4]} 76...
Rb3+ {[%clk 0:01:20.1]} 77. Kf2 {[%clk 0:00:06.7]} 77... Kh5 {[%clk 0:01:20.2]}
78. Kg2 {[%clk 0:00:06.7]} 78... Rb4 {[%clk 0:01:18.6]} 79. Rc3 {[%clk
0:00:06.6]} 79... Kg4 {[%clk 0:01:18.7]} 80. Rd3 {[%clk 0:00:06]} 80... Rb2+
{[%clk 0:01:18.9]} 81. Kg1 {[%clk 0:00:05.5]} 81... Re2 {[%clk 0:01:18.5]} 82.
Rc3 {[%clk 0:00:04.7]} 82... Kh3 {[%clk 0:01:15.8]} 83. Rb3 {[%clk 0:00:02.4]}
83... Rg2+ {[%clk 0:01:15.5]} 84. Kh1 {[%clk 0:00:01.5]} 84... Rxg3 {[%clk
0:01:16.4]} 85. Rb5 {[%clk 0:00:01.1]} 85... Rf3 {[%clk 0:01:15]} 0-1

[Event "Late-Titled-Tuesday-Blitz-September-05-2023"]
[Site "Chess.com"]
[Date "2023.09.05"]
[Round "11"]
[White "Hikaru"]
[Black "BogdanDeac"]
[Result "1-0"]
[WhiteElo "3240"]
[BlackElo "3007"]
[TimeControl "180+1"]
[EndTime "16:05:56 PDT"]
[Termination "Hikaru won by resignation"]

1. Nf3 {[%clk 0:02:49.1]} 1... c5 {[%clk 0:02:59.3]} 2. e4 {[%clk 0:02:39.2]}
2... Nc6 {[%clk 0:02:58.7]} 3. c3 {[%clk 0:02:12.5]} 3... d5 {[%clk 0:02:57.6]}
4. exd5 {[%clk 0:02:12.7]} 4... Qxd5 {[%clk 0:02:58.5]} 5. Na3 {[%clk
0:02:13.4]} 5... Bf5 {[%clk 0:02:42.7]} 6. d4 {[%clk 0:02:03.4]} 6... e6 {[%clk
0:02:42.7]} 7. Be3 {[%clk 0:02:00.1]} 7... cxd4 {[%clk 0:01:57.5]} 8. Nb5 {[%clk
0:02:00.2]} 8... O-O-O {[%clk 0:01:57]} 9. Nbxd4 {[%clk 0:01:27.8]} 9... Bc5
{[%clk 0:01:44.3]} 10. Qa4 {[%clk 0:01:24.5]} 10... Nxd4 {[%clk 0:01:36.6]} 11.
Nxd4 {[%clk 0:01:20]} 11... Ne7 {[%clk 0:01:36.5]} 12. O-O-O {[%clk 0:01:15.3]}
12... Bb6 {[%clk 0:01:34.7]} 13. Be2 {[%clk 0:01:08.6]} 13... Qe4 {[%clk
0:00:50.6]} 14. Qc4+ {[%clk 0:00:55.2]} 14... Kb8 {[%clk 0:00:49.8]} 15. Nxf5
{[%clk 0:00:45.6]} 15... Qxc4 {[%clk 0:00:42.8]} 16. Bxc4 {[%clk 0:00:46.5]}
16... Nxf5 {[%clk 0:00:42.5]} 17. Bxb6 {[%clk 0:00:47.2]} 17... axb6 {[%clk
0:00:43.1]} 18. Bd3 {[%clk 0:00:47]} 18... Ne7 {[%clk 0:00:39.6]} 19. Kc2 {[%clk
0:00:46]} 19... h5 {[%clk 0:00:39.4]} 20. h4 {[%clk 0:00:45.5]} 20... Kc7 {[%clk
0:00:37.9]} 21. Rh3 {[%clk 0:00:43.7]} 21... Nc6 {[%clk 0:00:36.9]} 22. Re1
{[%clk 0:00:43.6]} 22... Rd7 {[%clk 0:00:32.7]} 23. Be4 {[%clk 0:00:43.6]} 23...
Rhd8 {[%clk 0:00:31.6]} 24. Rd3 {[%clk 0:00:42.8]} 24... Rxd3 {[%clk 0:00:25.7]}
25. Bxd3 {[%clk 0:00:43.7]} 25... g6 {[%clk 0:00:26.2]} 26. Re3 {[%clk
0:00:39.8]} 26... Rd5 {[%clk 0:00:25.7]} 27. a4 {[%clk 0:00:32]} 27... Ne5
{[%clk 0:00:11.5]} 28. Be2 {[%clk 0:00:26.8]} 28... Nd7 {[%clk 0:00:08.9]} 29.
Bb5 {[%clk 0:00:26.4]} 29... Rf5 {[%clk 0:00:04.1]} 30. f3 {[%clk 0:00:26.6]}
30... Nf6 {[%clk 0:00:04.4]} 31. Rd3 {[%clk 0:00:20.8]} 31... Re5 {[%clk
0:00:04.3]} 32. Rd1 {[%clk 0:00:18]} 32... Rf5 {[%clk 0:00:03.9]} 33. Rd4 {[%clk
0:00:16.8]} 33... Nd5 {[%clk 0:00:02.7]} 34. Bd3 {[%clk 0:00:14.5]} 34... Re5
{[%clk 0:00:02.8]} 35. Kd2 {[%clk 0:00:14.9]} 35... Ne7 {[%clk 0:00:02.6]} 36.
Rf4 {[%clk 0:00:15.1]} 36... f5 {[%clk 0:00:02.9]} 37. Bc4 {[%clk 0:00:14.1]}
37... Nc6 {[%clk 0:00:02.9]} 38. Ba2 {[%clk 0:00:13.8]} 38... Kd6 {[%clk
0:00:02.7]} 39. b4 {[%clk 0:00:12.8]} 39... Ke7 {[%clk 0:00:02.6]} 40. Rc4
{[%clk 0:00:08.4]} 40... Rd5+ {[%clk 0:00:02]} 41. Ke2 {[%clk 0:00:07.5]} 41...
Kd7 {[%clk 0:00:02.2]} 42. Rxc6 {[%clk 0:00:06]} 42... bxc6 {[%clk 0:00:02.2]}
43. Bxd5 {[%clk 0:00:06.6]} 43... exd5 {[%clk 0:00:02.7]} 44. Kd3 {[%clk
0:00:06.4]} 44... c5 {[%clk 0:00:02.9]} 45. Kc2 {[%clk 0:00:06.1]} 45... Kc6
{[%clk 0:00:02.6]} 46. Kb3 {[%clk 0:00:06.8]} 46... Kd6 {[%clk 0:00:02.4]} 47.
a5 {[%clk 0:00:05.2]} 47... Kc6 {[%clk 0:00:02.2]} 48. Ka4 {[%clk 0:00:03.9]}
48... b5+ {[%clk 0:00:01.2]} 49. Kb3 {[%clk 0:00:04]} 49... d4 {[%clk
0:00:01.3]} 50. cxd4 {[%clk 0:00:02.8]} 50... c4+ {[%clk 0:00:01.3]} 51. Kc3
{[%clk 0:00:03.4]} 51... f4 {[%clk 0:00:01.5]} 52. Kc2 {[%clk 0:00:03.6]} 52...
Kb7 {[%clk 0:00:01.3]} 53. d5 {[%clk 0:00:03.9]} 53... Kc7 {[%clk 0:00:01.9]}
54. a6 {[%clk 0:00:03.6]} 54... Kb6 {[%clk 0:00:02.1]} 55. d6 {[%clk 0:00:04.3]}
1-0

[Event "Late-Titled-Tuesday-Blitz-September-05-2023"]
[Site "Chess.com"]
[Date "2023.09.05"]
[Round "11"]
[White "Akhayan"]
[Black "rdarruda"]
[Result "0-1"]
[WhiteElo "2348"]
[BlackElo "2512"]
[TimeControl "180+1"]
[EndTime "16:06:02 PDT"]
[Termination "rdarruda won by resignation"]

1. e4 {[%clk 0:03:00.9]} 1... c5 {[%clk 0:02:44.4]} 2. Nf3 {[%clk 0:03:00.7]}
2... Nc6 {[%clk 0:02:43.8]} 3. Nc3 {[%clk 0:03:00.2]} 3... Nf6 {[%clk
0:02:43.1]} 4. Bb5 {[%clk 0:02:59.6]} 4... d6 {[%clk 0:02:40.4]} 5. d4 {[%clk
0:02:58.5]} 5... cxd4 {[%clk 0:02:39.8]} 6. Qxd4 {[%clk 0:02:59.2]} 6... Bd7
{[%clk 0:02:38.7]} 7. Bxc6 {[%clk 0:02:59.4]} 7... Bxc6 {[%clk 0:02:38.2]} 8.
Bg5 {[%clk 0:02:59.9]} 8... e6 {[%clk 0:02:37.6]} 9. O-O-O {[%clk 0:03:00.1]}
9... Be7 {[%clk 0:02:37.5]} 10. Kb1 {[%clk 0:03:00.5]} 10... Qc7 {[%clk
0:02:36]} 11. h4 {[%clk 0:03:00.4]} 11... a6 {[%clk 0:02:32.9]} 12. Nd2 {[%clk
0:02:51.8]} 12... O-O-O {[%clk 0:02:29.3]} 13. Nc4 {[%clk 0:02:49.1]} 13... Kb8
{[%clk 0:02:24.1]} 14. f3 {[%clk 0:02:46.4]} 14... h6 {[%clk 0:02:18.5]} 15. Be3
{[%clk 0:02:45.4]} 15... b5 {[%clk 0:02:06.8]} 16. Na5 {[%clk 0:02:33.8]} 16...
Ba8 {[%clk 0:02:02.9]} 17. Rd3 {[%clk 0:02:03.2]} 17... e5 {[%clk 0:02:00.7]}
18. Qb6+ {[%clk 0:01:59.5]} 18... Qxb6 {[%clk 0:02:00.9]} 19. Bxb6 {[%clk
0:02:00]} 19... Rc8 {[%clk 0:02:01.2]} 20. Rhd1 {[%clk 0:01:54.3]} 20... Nd7
{[%clk 0:01:58.7]} 21. Be3 {[%clk 0:01:51.9]} 21... Rhd8 {[%clk 0:01:47.5]} 22.
h5 {[%clk 0:01:50]} 22... Nc5 {[%clk 0:01:41.8]} 23. Bxc5 {[%clk 0:01:49.4]}
23... dxc5 {[%clk 0:01:42.7]} 24. Nd5 {[%clk 0:01:36.5]} 24... Bg5 {[%clk
0:01:31.4]} 25. Nb6 {[%clk 0:01:31.4]} 25... Rxd3 {[%clk 0:01:30.5]} 26. Rxd3
{[%clk 0:01:29.1]} 26... Rd8 {[%clk 0:01:31.1]} 27. Nd7+ {[%clk 0:01:13.5]}
27... Kc7 {[%clk 0:01:26.3]} 28. Nxc5 {[%clk 0:01:13.9]} 28... Kb6 {[%clk
0:01:21.4]} 29. Rxd8 {[%clk 0:01:05.4]} 29... Bxd8 {[%clk 0:01:20.1]} 30. Nab3
{[%clk 0:01:05.6]} 30... Bc7 {[%clk 0:01:16.3]} 31. Nd3 {[%clk 0:01:00.5]} 31...
f6 {[%clk 0:01:16.3]} 32. Nd2 {[%clk 0:00:58.9]} 32... Bc6 {[%clk 0:01:10]} 33.
Nf1 {[%clk 0:00:58.9]} 33... Bd7 {[%clk 0:01:08.3]} 34. Ne3 {[%clk 0:00:59.2]}
34... Bd6 {[%clk 0:01:07]} 35. b3 {[%clk 0:00:54.3]} 35... Ba3 {[%clk
0:01:01.6]} 36. c4 {[%clk 0:00:53.9]} 36... Bf8 {[%clk 0:00:58.6]} 37. Nd5+
{[%clk 0:00:53.3]} 37... Kc6 {[%clk 0:00:56.6]} 38. Kc2 {[%clk 0:00:52.1]} 38...
bxc4 {[%clk 0:00:56.3]} 39. bxc4 {[%clk 0:00:52.3]} 39... Kb7 {[%clk 0:00:52.9]}
40. Kb3 {[%clk 0:00:48.6]} 40... Bd6 {[%clk 0:00:50.8]} 41. c5 {[%clk 0:00:48]}
41... Bf8 {[%clk 0:00:50.7]} 42. Kc4 {[%clk 0:00:48.3]} 42... Bb5+ {[%clk
0:00:50.9]} 43. Kc3 {[%clk 0:00:48.7]} 43... a5 {[%clk 0:00:49.3]} 44. g3 {[%clk
0:00:38.5]} 44... Kc6 {[%clk 0:00:48.6]} 45. f4 {[%clk 0:00:38.4]} 45... exf4
{[%clk 0:00:21.4]} 46. N3xf4 {[%clk 0:00:37.1]} 46... Bxc5 {[%clk 0:00:20.6]}
47. Ne6 {[%clk 0:00:35.2]} 47... Bf2 {[%clk 0:00:19.8]} 48. Nxg7 {[%clk
0:00:33.1]} 48... Bxg3 {[%clk 0:00:18.8]} 49. Nf5 {[%clk 0:00:32.4]} 49... Be5+
{[%clk 0:00:17.7]} 50. Kc2 {[%clk 0:00:31.7]} 50... Bc4 {[%clk 0:00:17.6]} 51.
Nde7+ {[%clk 0:00:27.4]} 51... Kd7 {[%clk 0:00:17]} 52. a3 {[%clk 0:00:25.7]}
52... Be2 {[%clk 0:00:15.2]} 53. Nd5 {[%clk 0:00:19.6]} 53... Bxh5 {[%clk
0:00:15]} 54. Nxh6 {[%clk 0:00:19.8]} 54... Bg6 {[%clk 0:00:15]} 55. Nf5 {[%clk
0:00:20]} 55... Bxf5 {[%clk 0:00:14.3]} 56. exf5 {[%clk 0:00:20.4]} 56... Kd6
{[%clk 0:00:15.2]} 57. Ne3 {[%clk 0:00:20.4]} 57... Kc5 {[%clk 0:00:13.8]} 58.
Kb3 {[%clk 0:00:20.3]} 58... Bf4 {[%clk 0:00:13.7]} 59. Nc4 {[%clk 0:00:20]}
59... Bc7 {[%clk 0:00:13.1]} 60. Nd2 {[%clk 0:00:18.1]} 60... Kd4 {[%clk
0:00:13]} 61. Ka4 {[%clk 0:00:17.5]} 61... Ke5 {[%clk 0:00:11.8]} 62. Kb5 {[%clk
0:00:16.8]} 62... Kxf5 {[%clk 0:00:12.3]} 63. Kc6 {[%clk 0:00:17.2]} 63... Bd8
{[%clk 0:00:12.7]} 64. a4 {[%clk 0:00:17.6]} 64... Ke5 {[%clk 0:00:10.4]} 65.
Nc4+ {[%clk 0:00:17.7]} 65... Kd4 {[%clk 0:00:09.9]} 66. Nxa5 {[%clk 0:00:17.7]}
66... Bxa5 {[%clk 0:00:09.2]} 0-1